bitfinex-derivatives/quotes_BTCF0:USTF0_20251109
["timestamp","ask_amount","ask_price","bid_price","bid_amount"]
[1762714512741,1.00392733,104430.0,104420.0,0.02545706]
[1762714512939,0.3110081,104410.0,104400.0,0.39453348]
[1762714513242,0.92051835,104410.0,104400.0,0.39453348]
[1762714513638,0.92051835,104410.0,104400.0,0.03373348]
[1762714513639,1.28131835,104410.0,104400.0,0.03373348]
[1762714514033,0.3110173,104400.0,104390.0,0.05096622]
[1762714514240,0.79737102,104400.0,104390.0,0.05096622]
[1762714514435,0.79737102,104400.0,104390.0,0.26864622]
[1762714514436,0.45510798,104400.0,104390.0,0.26864622]
[1762714514743,0.79554798,104400.0,104390.0,0.72526262]
[1762714514943,0.69974068,104400.0,104390.0,0.72526262]
[1762714515139,0.79554798,104400.0,104390.0,0.62944622]
[1762714515442,0.0967981,104410.0,104400.0,0.28054]
[1762714515635,0.0967981,104410.0,104400.0,0.78778779]
[1762714515636,0.21621,104410.0,104400.0,0.78778779]
[1762714515840,0.35979689,104410.0,104400.0,0.78778779]
[1762714516045,0.45559499,104410.0,104400.0,0.78778779]
[1762714516254,0.35879689,104410.0,104400.0,0.78778779]
[1762714516743,0.45459499,104410.0,104400.0,0.69198049]
[1762714517047,0.35979689,104410.0,104400.0,0.79578779]
[1762714517548,0.45559499,104410.0,104400.0,0.79578779]
[1762714518248,0.001,104410.0,104400.0,0.79578779]
[1762714518742,0.001,104410.0,104400.0,0.64934]
[1762714518743,0.0967981,104410.0,104400.0,0.64934]
[1762714518941,0.0967981,104410.0,104400.0,1.04050665]
[1762714519336,0.0967981,104410.0,104400.0,0.98982]
[1762714519743,0.001,104410.0,104400.0,1.0856273]
[1762714519942,0.001,104410.0,104400.0,1.2330273]
[1762714520242,0.86037072,104450.0,104440.0,0.21768]
[1762714520441,0.714497,104450.0,104440.0,0.57848]
[1762714520637,0.85840799,104450.0,104440.0,0.57848]
[1762714520838,0.51792799,104450.0,104440.0,0.57848]
[1762714521139,0.85840799,104450.0,104440.0,0.57848]
[1762714521448,0.69960099,104450.0,104440.0,0.6890006]
[1762714521740,0.79536239,104450.0,104440.0,0.6742506]
[1762714521940,0.79536239,104450.0,104440.0,0.57848]
[1762714522242,0.80036239,104450.0,104440.0,0.57848]
[1762714522447,0.80336239,104450.0,104440.0,0.57848]
[1762714523048,0.79636239,104450.0,104440.0,0.57848]
[1762714523439,0.45588239,104450.0,104440.0,0.57848]
[1762714523738,0.79636239,104450.0,104440.0,0.65463472]
[1762714524150,0.45588239,104450.0,104440.0,0.65463472]
[1762714524448,0.79636239,104450.0,104440.0,0.65463472]
[1762714526149,0.45588239,104450.0,104440.0,0.29383472]
[1762714526354,0.79632239,104450.0,104440.0,0.29383472]
[1762714526652,0.3496206,104440.0,104430.0,0.71215418]
[1762714527836,0.3496206,104440.0,104430.0,0.78956487]
[1762714528240,0.3496206,104440.0,104430.0,0.79156487]
[1762714528443,1.04378714,104440.0,104430.0,0.00130999]
[1762714528644,0.349639,104420.0,104410.0,0.51813657]
[1762714528949,0.349639,104420.0,104410.0,0.61530657]
[1762714529744,0.349639,104420.0,104410.0,0.61730657]
[1762714532050,0.49319379,104420.0,104410.0,0.05569657]
[1762714532249,0.68245332,104420.0,104410.0,0.05569657]
[1762714532462,1.04325332,104420.0,104410.0,0.005]
[1762714535355,1.04325332,104420.0,104410.0,0.05569657]
[1762714535954,1.04325332,104420.0,104410.0,0.005]
[1762714536151,0.2943282,104410.0,104400.0,0.05084075]
[1762714536352,0.6347682,104410.0,104400.0,0.05084075]
[1762714536655,0.77873757,104410.0,104400.0,0.05084075]
[1762714537045,1.13953757,104410.0,104400.0,0.05084075]
[1762714537953,1.15153757,104410.0,104400.0,0.05184075]
[1762714538148,0.81109757,104410.0,104400.0,0.25565075]
[1762714538352,0.44629757,104410.0,104400.0,0.25565075]
[1762714538552,0.78673757,104410.0,104400.0,0.30176148]
[1762714538753,0.77873757,104410.0,104400.0,0.30276148]
[1762714538953,0.77873757,104410.0,104400.0,0.20695418]
[1762714539254,0.77873757,104410.0,104400.0,0.30276148]
[1762714539654,0.43829757,104410.0,104400.0,0.20695418]
[1762714539848,0.77877757,104410.0,104400.0,0.20695418]
[1762714540048,0.77877757,104410.0,104400.0,0.30276148]
[1762714540752,0.77877757,104410.0,104400.0,0.20695418]
[1762714541259,0.77877757,104410.0,104400.0,0.56775418]
[1762714541845,0.58024757,104410.0,104400.0,0.66356148]
[1762714542049,0.29445988,104430.0,104420.0,0.2995989]
[1762714542252,0.63489988,104430.0,104420.0,0.61550251]
[1762714542549,0.77897997,104430.0,104420.0,0.71129141]
[1762714543952,0.78297997,104430.0,104420.0,0.71129141]
[1762714544565,0.78097997,104430.0,104420.0,0.71129141]
[1762714544858,0.78297997,104430.0,104420.0,0.61550251]
[1762714545056,0.78097997,104430.0,104420.0,0.61550251]
[1762714545355,0.77897997,104430.0,104420.0,0.61550251]
[1762714545857,1.13977997,104430.0,104420.0,0.05089251]
[1762714546060,1.13977997,104430.0,104420.0,0.03393189]
[1762714546262,1.13977997,104430.0,104420.0,1.89e-06]
[1762714546455,0.3496389,104420.0,104410.0,0.05089251]
[1762714546758,0.19246,104410.0,104400.0,0.46758418]
[1762714547062,0.43164353,104410.0,104400.0,0.46758418]
[1762714547251,0.43164353,104410.0,104400.0,0.56081418]
[1762714547453,0.43164353,104410.0,104400.0,0.65662148]
[1762714547852,0.43164353,104410.0,104400.0,0.56281418]
[1762714548456,0.43164353,104410.0,104400.0,0.56381418]
[1762714548868,0.77208353,104410.0,104400.0,0.56381418]
[1762714549159,0.68406353,104410.0,104400.0,0.67318148]
[1762714549760,0.77208353,104410.0,104400.0,0.67318148]
[1762714551171,0.41693353,104410.0,104400.0,0.67318148]
[1762714552262,0.41693363,104410.0,104400.0,0.67318148]
[1762714552561,0.27367938,104430.0,104420.0,0.329669]
[1762714552770,0.27367938,104430.0,104420.0,0.59468]
[1762714553061,0.41734985,104430.0,104420.0,0.59468]
[1762714553762,0.41934985,104430.0,104420.0,0.53952]
[1762714553958,0.42134985,104430.0,104420.0,0.53952]
[1762714555966,0.42134985,104430.0,104420.0,0.6353089]
[1762714556160,0.18965938,104430.0,104420.0,1.0400689]
[1762714556369,0.09992398,104430.0,104420.0,1.0400689]
[1762714557067,0.00414418,104430.0,104420.0,1.0400689]
[1762714557367,0.00214418,104430.0,104420.0,1.0400689]
[1762714557660,0.00014418,104430.0,104420.0,1.0410689]
[1762714559364,4.18e-06,104430.0,104420.0,1.3762314]
[1762714559861,4.18e-06,104430.0,104420.0,1.3782314]
[1762714560066,4.18e-06,104430.0,104420.0,1.1388314]
[1762714560465,4.18e-06,104430.0,104420.0,1.3782314]
[1762714560668,0.0957669,104450.0,104440.0,0.2255]
[1762714560858,0.0957669,104450.0,104440.0,0.5863]
[1762714561061,0.0957669,104450.0,104440.0,0.6820706]
[1762714561372,0.0957669,104450.0,104440.0,0.3608]
[1762714561373,0.41728542,104450.0,104440.0,0.3608]
[1762714561670,0.41728542,104450.0,104440.0,0.536]
[1762714562166,0.14428442,104450.0,104440.0,0.5863]
[1762714562477,0.5336495,104460.0,104450.0,0.1752]
[1762714562478,0.68076638,104460.0,104450.0,0.1752]
[1762714562666,0.61772638,104460.0,104450.0,0.536]
[1762714562868,0.61772638,104460.0,104450.0,0.6317614]
[1762714562869,0.2393524,104460.0,104450.0,0.6317614]
[1762714563068,0.09589638,104460.0,104450.0,0.536]
[1762714563281,0.27736638,104460.0,104450.0,0.536]
[1762714563664,0.28136638,104460.0,104450.0,0.537]
[1762714563870,0.28436638,104460.0,104450.0,0.537]
[1762714564071,0.18861418,104460.0,104450.0,0.6327614]
[1762714564271,0.28436638,104460.0,104450.0,0.537]
[1762714564472,0.18461418,104460.0,104450.0,0.6337614]
[1762714564672,0.19074638,104460.0,104450.0,0.6337614]
[1762714565479,0.00014418,104460.0,104450.0,0.76344051]
[1762714566276,0.00014418,104460.0,104450.0,0.712548]
[1762714566677,0.00014418,104460.0,104450.0,0.76344051]
[1762714567373,0.00014418,104460.0,104450.0,1.00276051]
[1762714567769,0.00014418,104460.0,104450.0,0.76344051]
[1762714567968,0.00014418,104460.0,104450.0,1.00276051]
[1762714568178,0.00014418,104460.0,104450.0,1.0123809]
[1762714568569,0.00014418,104460.0,104450.0,0.7730609]
[1762714569478,0.00014418,104460.0,104450.0,0.72216839]
[1762714570178,0.00014418,104460.0,104450.0,0.86956839]
[1762714570778,0.09589648,104460.0,104450.0,0.86956839]
[1762714571181,0.00014418,104460.0,104450.0,0.86956839]
[1762714571780,0.59243,104500.0,104490.0,0.08549]
[1762714571984,0.2771992,104490.0,104480.0,0.536]
[1762714572184,0.4712733,104480.0,104470.0,0.536]
[1762714572381,0.2772131,104470.0,104460.0,0.536]
[1762714572586,0.3273823,104460.0,104450.0,0.6167866]
[1762714572781,0.3273823,104460.0,104450.0,0.6147866]
[1762714572977,0.3273823,104460.0,104450.0,0.63911892]
[1762714573181,0.2772223,104460.0,104450.0,0.63911892]
[1762714573583,0.27735998,104470.0,104460.0,0.1752]
[1762714573890,0.42003437,104470.0,104460.0,0.536]
[1762714574384,0.32428857,104470.0,104460.0,0.6820522]
[1762714574589,0.42003167,104470.0,104460.0,0.20053232]
[1762714574778,0.42003167,104470.0,104460.0,0.1752]
[1762714575483,0.42003167,104470.0,104460.0,0.536]
[1762714575687,0.42003167,104470.0,104460.0,0.56133232]
[1762714576285,0.42003167,104470.0,104460.0,0.1752]
[1762714577587,0.3273823,104460.0,104450.0,0.54940892]
[1762714577788,0.3273823,104460.0,104450.0,0.3608]
[1762714577986,0.47087657,104460.0,104450.0,0.3608]
[1762714578894,0.47087657,104460.0,104450.0,0.3638]
[1762714579286,0.47087657,104460.0,104450.0,0.38913232]
[1762714579481,0.47087657,104460.0,104450.0,0.56433232]
[1762714579793,0.47087657,104460.0,104450.0,0.539]
[1762714579993,0.47087657,104460.0,104450.0,0.44929]
[1762714580194,0.47087657,104460.0,104450.0,0.3638]
[1762714580596,0.47087657,104460.0,104450.0,0.003]
[1762714582190,0.83167657,104460.0,104450.0,0.003]
[1762714585394,0.83167657,104460.0,104450.0,0.02833232]
[1762714587294,0.2673215,104450.0,104440.0,0.03397046]
[1762714587501,1.19367103,104450.0,104440.0,0.03397046]
[1762714587796,1.33681174,104450.0,104440.0,0.03397046]
[1762714588495,1.34481174,104450.0,104440.0,0.03397046]
[1762714588797,0.3157606,104440.0,104430.0,0.05089251]
[1762714588998,0.4412565,104440.0,104430.0,0.05089251]
[1762714589189,0.58455463,104440.0,104430.0,0.05089251]
[1762714589792,0.58562712,104440.0,104430.0,0.05089251]
[1762714590491,0.58562712,104440.0,104430.0,0.22115251]
[1762714591191,0.92562712,104440.0,104430.0,0.27018251]
[1762714591499,0.92562712,104440.0,104430.0,0.63098251]
[1762714592404,0.80013122,104440.0,104430.0,0.72676231]
[1762714592594,0.41170122,104440.0,104430.0,0.63098251]
[1762714593190,0.41170122,104440.0,104430.0,0.72676231]
[1762714593702,0.41170122,104440.0,104430.0,0.6758698]
[1762714594091,0.41170122,104440.0,104430.0,0.58009]
[1762714594401,0.53719712,104440.0,104430.0,0.17026]
[1762714595396,0.58562712,104440.0,104430.0,0.17026]
[1762714595603,0.3157698,104430.0,104420.0,0.80598174]
[1762714595795,0.4412657,104430.0,104420.0,0.57692174]
[1762714596001,0.92449188,104430.0,104420.0,0.48832174]
[1762714596196,0.92449188,104430.0,104420.0,0.57692174]
[1762714596501,0.92449188,104430.0,104420.0,0.65858174]
[1762714597302,0.92449188,104430.0,104420.0,0.65958174]
[1762714597706,0.92449188,104430.0,104420.0,0.66158174]
[1762714598806,0.92449188,104430.0,104420.0,0.41486898]
[1762714599307,0.92449188,104430.0,104420.0,0.36394418]
[1762714599606,0.92449188,104430.0,104420.0,0.00314418]
[1762714600009,1.28529188,104430.0,104420.0,0.00314418]
[1762714601005,0.3157881,104410.0,104400.0,0.0509248]
[1762714601205,0.78127309,104410.0,104400.0,0.0509248]
[1762714601409,0.92427419,104410.0,104400.0,0.0509248]
[1762714602101,1.28507419,104410.0,104400.0,0.0509248]
[1762714602302,1.30307419,104410.0,104400.0,0.0529248]
[1762714603107,0.2673673,104400.0,104390.0,0.05110983]
[1762714603404,0.72579859,104400.0,104370.0,0.3608]
[1762714603605,0.1121348,104370.0,104360.0,0.22258512]
[1762714603907,0.56691665,104370.0,104360.0,0.28711968]
[1762714604103,0.56691665,104370.0,104360.0,0.21929]
[1762714604399,0.56699945,104370.0,104360.0,0.28708022]
[1762714604605,0.69249535,104370.0,104360.0,0.28708022]
[1762714604804,0.56699945,104370.0,104360.0,0.28708022]
[1762714605002,0.69249535,104370.0,104360.0,0.28708022]
[1762714605205,0.69449535,104370.0,104360.0,0.28708022]
[1762714605906,0.56899945,104370.0,104360.0,0.38292422]
[1762714606105,0.69449535,104370.0,104360.0,0.38292422]
[1762714606507,0.69249535,104370.0,104360.0,0.38292422]
[1762714606708,0.69349535,104370.0,104360.0,0.38492422]
[1762714607004,0.12409465,104370.0,104360.0,0.677934]
[1762714607305,0.11494465,104370.0,104360.0,0.676934]
[1762714607516,0.00014418,104380.0,104370.0,0.2552149]
[1762714607809,0.00014418,104380.0,104370.0,0.68369941]
[1762714608200,0.09818988,104380.0,104370.0,0.58786451]
[1762714608404,0.09596988,104380.0,104370.0,0.68369941]
[1762714608610,0.09607332,104380.0,104370.0,0.68369941]
[1762714609004,0.00024762,104380.0,104370.0,0.68369941]
[1762714609508,0.00024762,104380.0,104370.0,1.28369941]
[1762714610009,0.00124762,104380.0,104370.0,1.29069941]
[1762714610310,0.00124762,104380.0,104370.0,1.29469941]
[1762714610806,0.00124762,104380.0,104370.0,1.2270149]
[1762714611000,0.00224762,104380.0,104370.0,1.2190149]
[1762714611202,0.00324762,104380.0,104370.0,1.2190149]
[1762714611401,0.43931192,104400.0,104390.0,0.15938]
[1762714611603,0.43931192,104400.0,104390.0,0.52018]
[1762714611798,0.24322753,104400.0,104390.0,0.52018]
[1762714612510,0.24100753,104400.0,104390.0,0.6159964]
[1762714612707,0.23878753,104400.0,104390.0,0.6159964]
[1762714612913,0.23978753,104400.0,104390.0,0.6189964]
[1762714613107,0.23978753,104400.0,104390.0,0.9797964]
[1762714613312,0.24200753,104400.0,104390.0,0.88598]
[1762714613615,0.24422753,104400.0,104390.0,0.88598]
[1762714613815,0.24322753,104400.0,104390.0,0.88298]
[1762714614119,0.24422753,104400.0,104390.0,0.88798]
[1762714614414,0.24422753,104400.0,104390.0,0.88998]
[1762714616509,0.36972343,104400.0,104390.0,0.88998]
[1762714618907,0.36972343,104400.0,104390.0,0.9827964]
[1762714619119,0.23978753,104400.0,104390.0,0.9827964]
[1762714620114,0.14398033,104400.0,104390.0,0.9827964]
[1762714620421,0.001,104400.0,104390.0,0.9827964]
[1762714621124,0.0968073,104400.0,104390.0,0.9827964]
[1762714621420,0.0968073,104400.0,104390.0,0.9827965]
[1762714621617,0.001,104400.0,104390.0,0.9827965]
[1762714621812,0.0968073,104400.0,104390.0,0.9827965]
[1762714624218,0.0968073,104400.0,104390.0,1.01668627]
[1762714624918,0.001,104400.0,104390.0,1.01368627]
[1762714625127,0.00014418,104410.0,104400.0,0.2928973]
[1762714625423,0.14421884,104410.0,104400.0,0.6536973]
[1762714625618,0.02252884,104410.0,104400.0,0.6536973]
[1762714625824,0.0957942,104420.0,104410.0,0.2928881]
[1762714626019,0.0957942,104420.0,104410.0,0.6536881]
[1762714626221,0.23926858,104420.0,104410.0,0.6536881]
[1762714627122,0.14347438,104420.0,104410.0,0.6536881]
[1762714627328,0.09592798,104430.0,104420.0,0.2928789]
[1762714627520,0.09592798,104430.0,104420.0,0.6536789]
[1762714627721,0.23906951,104430.0,104420.0,0.6536789]
[1762714628722,0.23906951,104430.0,104420.0,0.6566789]
[1762714629128,0.24006541,104430.0,104420.0,0.6606789]
[1762714629328,0.14428571,104430.0,104420.0,0.6606789]
[1762714630038,0.00114418,104430.0,104420.0,0.6606789]
[1762714630328,0.09692398,104430.0,104420.0,0.6606789]
[1762714630525,0.56538679,104430.0,104420.0,0.3678]
[1762714631227,1.56053541,104430.0,104420.0,0.007]
[1762714631929,1.61220385,104430.0,104420.0,0.007]
[1762714633531,1.56053541,104430.0,104420.0,0.007]
[1762714635230,1.52618679,104430.0,104420.0,0.007]
[1762714637333,1.56053541,104430.0,104420.0,0.007]
[1762714642528,1.61220385,104430.0,104420.0,0.007]
[1762714645232,0.255308,104410.0,104400.0,0.19723418]
[1762714645431,0.7206439,104410.0,104400.0,0.55803418]
[1762714645635,0.86376048,104410.0,104400.0,0.55803418]
[1762714646237,0.86376048,104410.0,104400.0,0.65384138]
[1762714646440,0.86376048,104410.0,104400.0,0.66184138]
[1762714646441,0.86476048,104410.0,104400.0,0.66184138]
[1762714646834,0.86576048,104410.0,104400.0,0.66684138]
[1762714647332,0.86476048,104410.0,104400.0,0.56203418]
[1762714647533,0.52492048,104410.0,104400.0,0.56403418]
[1762714648638,0.52492048,104410.0,104400.0,0.56303418]
[1762714648839,0.39942458,104410.0,104400.0,0.56303418]
[1762714649140,0.39842458,104410.0,104400.0,0.55903418]
[1762714649341,0.40042458,104410.0,104400.0,0.56003418]
[1762714649637,0.40042458,104410.0,104400.0,0.65584138]
[1762714649842,0.40042458,104410.0,104400.0,0.55903418]
[1762714650042,0.39942458,104410.0,104400.0,0.56203418]
[1762714652147,0.39942458,104410.0,104400.0,0.65784138]
[1762714652339,0.23991458,104410.0,104400.0,0.65784138]
[1762714652649,0.001,104410.0,104400.0,0.65784138]
[1762714653334,0.1302787,104430.0,104420.0,0.18676]
[1762714653534,0.2448189,104420.0,104410.0,0.18676]
[1762714653741,0.3882356,104420.0,104410.0,0.18676]
[1762714654043,0.2448189,104420.0,104410.0,0.18676]
[1762714654440,0.3882356,104420.0,104410.0,0.18676]
[1762714654949,0.3186856,104420.0,104410.0,0.643358]
[1762714655146,0.2392056,104420.0,104410.0,0.643358]
[1762714656047,0.2402056,104420.0,104410.0,0.644358]
[1762714656440,0.2402056,104420.0,104410.0,0.646358]
[1762714656745,0.2342056,104420.0,104410.0,0.645358]
[1762714656944,0.2352056,104420.0,104410.0,0.646358]
[1762714657142,0.2352056,104420.0,104410.0,0.649358]
[1762714658041,0.3146856,104420.0,104410.0,0.55356]
[1762714658247,0.3146856,104420.0,104410.0,0.651358]
[1762714659150,0.3146856,104420.0,104410.0,0.646358]
[1762714659353,0.3146856,104420.0,104410.0,0.648358]
[1762714660947,0.3842356,104420.0,104410.0,0.55256]
[1762714661146,0.3842356,104420.0,104410.0,0.19176]
[1762714663452,0.57363257,104420.0,104410.0,0.19176]
[1762714665153,0.57363257,104420.0,104410.0,0.2875581]
[1762714665941,0.57363257,104420.0,104410.0,0.6483581]
[1762714667252,0.3146856,104420.0,104410.0,0.6483581]
[1762714667447,0.2352056,104420.0,104410.0,0.6483581]
[1762714667649,0.1394167,104420.0,104410.0,0.68224787]
[1762714667852,0.09592388,104430.0,104420.0,0.2490289]
[1762714668154,0.09592388,104430.0,104420.0,0.6098289]
[1762714669260,0.09692388,104430.0,104420.0,0.6108289]
[1762714669953,0.09692388,104430.0,104420.0,0.51704]
[1762714670149,0.09692388,104430.0,104420.0,0.6128289]
[1762714670650,0.00014418,104430.0,104420.0,0.6118289]
[1762714670958,0.00114418,104430.0,104420.0,0.6148289]
[1762714671260,0.00114418,104430.0,104420.0,0.69285226]
[1762714672851,0.08612935,104450.0,104440.0,0.2491505]
[1762714673060,0.03446091,104460.0,104450.0,0.2668913]
[1762714673251,0.08609504,104460.0,104450.0,0.6276913]
[1762714673559,0.23012175,104460.0,104450.0,0.6276913]
[1762714674057,0.0344266,104460.0,104450.0,0.6276913]
[1762714674357,0.05181262,104470.0,104460.0,0.2668822]
[1762714674557,0.00014418,104470.0,104460.0,0.6276822]
[1762714674758,0.14740224,104480.0,104470.0,0.266873]
[1762714674961,0.05166844,104480.0,104470.0,0.627673]
[1762714675160,0.05157283,104490.0,104480.0,0.1191738]
[1762714675357,0.05157283,104490.0,104480.0,0.8511438]
[1762714675550,0.05058209,104490.0,104480.0,0.8511438]
[1762714675855,0.0275929,104490.0,104480.0,0.8511438]
[1762714676054,0.1233176,104490.0,104480.0,0.6118638]
[1762714676562,0.1243176,104490.0,104480.0,0.51613]
[1762714676957,0.1243176,104490.0,104480.0,0.6118639]
[1762714677353,0.1253176,104490.0,104480.0,0.6128639]
[1762714677956,0.1253176,104490.0,104480.0,0.8521439]
[1762714678157,0.1253176,104490.0,104480.0,0.6128639]
[1762714678660,0.002,104490.0,104480.0,0.67221296]
[1762714678857,0.00014418,104500.0,104490.0,0.2291647]
[1762714679058,0.00014418,104500.0,104490.0,0.61533068]
[1762714679256,0.00014418,104500.0,104490.0,0.2291647]
[1762714679455,0.09585978,104500.0,104490.0,1.11964598]
[1762714679655,0.00014418,104500.0,104490.0,0.9507647]
[1762714680053,0.00214418,104500.0,104490.0,1.02857513]
[1762714680552,0.41564856,104500.0,104490.0,0.93285043]
[1762714680757,0.41864856,104500.0,104490.0,0.85604]
[1762714681355,0.41564856,104500.0,104490.0,0.9507647]
[1762714681657,0.14569296,104500.0,104490.0,0.9517647]
[1762714681966,0.41564846,104500.0,104490.0,0.85604]
[1762714682462,0.37534846,104500.0,104490.0,0.85604]
[1762714682663,0.14569296,104500.0,104490.0,0.9517647]
[1762714682963,0.00214418,104500.0,104490.0,1.1910047]
[1762714683160,0.00214418,104500.0,104490.0,0.9517647]
[1762714684464,0.00214418,104500.0,104490.0,1.17581126]
[1762714687059,0.00214418,104500.0,104490.0,1.31350658]
[1762714687568,0.00214418,104500.0,104490.0,1.55274658]
[1762714687758,0.00214418,104500.0,104490.0,1.31350658]
[1762714687960,0.00214418,104500.0,104490.0,1.55274658]
[1762714688171,0.00114418,104500.0,104490.0,1.31450658]
[1762714688352,0.00114418,104500.0,104490.0,1.55374658]
[1762714688759,0.00114418,104500.0,104490.0,1.55274658]
[1762714688968,0.00114418,104500.0,104490.0,1.55474658]
[1762714689165,0.00014418,104500.0,104490.0,1.55374658]
[1762714689367,0.00114418,104500.0,104490.0,1.55574658]
[1762714689568,0.00114418,104500.0,104490.0,2.15574658]
[1762714689765,0.00114418,104500.0,104490.0,1.36634961]
[1762714690166,0.00114418,104500.0,104490.0,1.13110961]
[1762714690370,0.00114418,104500.0,104490.0,1.37034961]
[1762714690673,0.00114418,104500.0,104490.0,1.13110961]
[1762714690967,0.00268858,104500.0,104490.0,1.37234961]
[1762714691269,0.00268858,104500.0,104490.0,1.97234961]
[1762714691466,0.17424,104530.0,104500.0,0.1914266]
[1762714691670,0.53504,104530.0,104520.0,0.0956898]
[1762714691859,0.67926455,104530.0,104520.0,0.0956898]
[1762714692367,9.614e-05,104540.0,104530.0,0.0956881]
[1762714692584,0.05076052,104560.0,104530.0,0.0956881]
[1762714692585,0.3608,104570.0,104550.0,0.0956698]
[1762714692866,0.13394,104570.0,104560.0,0.3608]
[1762714693066,0.10618,104560.0,104550.0,0.0956698]
[1762714693268,0.9540183,104560.0,104540.0,0.7955538]
[1762714693465,0.7148583,104560.0,104550.0,0.4564698]
[1762714693770,0.4011,104580.0,104560.0,0.0956565]
[1762714693971,0.03826,104570.0,104560.0,0.4564565]
[1762714694166,0.003,104560.0,104550.0,0.55210824]
[1762714694367,0.008,104560.0,104550.0,0.4564648]
[1762714694569,0.24716,104560.0,104550.0,0.55210824]
[1762714694972,0.008,104560.0,104550.0,0.55210824]
[1762714695275,0.0483,104560.0,104550.0,0.4564698]
[1762714695771,0.24216,104560.0,104550.0,0.55211324]
[1762714695960,0.003,104560.0,104550.0,1.03227105]
[1762714696167,0.24216,104560.0,104550.0,0.79315105]
[1762714696477,0.003,104560.0,104550.0,1.05749266]
[1762714696667,0.24716,104560.0,104550.0,0.81937266]
[1762714696868,0.2295745,104590.0,104570.0,0.0956499]
[1762714697167,0.74506,104600.0,104570.0,0.36094346]
[1762714697168,0.8890607,104580.0,104570.0,0.36094346]
[1762714697364,0.07856,104580.0,104570.0,0.36094346]
[1762714697666,1.1282583,104580.0,104570.0,0.45659506]
[1762714697974,1.1665183,104580.0,104570.0,0.45659506]
[1762714698371,1.1725183,104580.0,104570.0,0.45759506]
[1762714698574,1.1725183,104580.0,104570.0,0.36194346]
[1762714698877,1.1725183,104580.0,104570.0,0.00214346]
[1762714699080,1.2681607,104580.0,104570.0,0.00214346]
[1762714699368,1.6070807,104580.0,104570.0,0.00214346]
[1762714699674,1.9678807,104580.0,104570.0,0.00214346]
[1762714700069,1.9758807,104580.0,104570.0,0.00214346]
[1762714700266,1.6369607,104580.0,104570.0,0.00214346]
[1762714700471,1.5413183,104580.0,104570.0,0.00214346]
[1762714700675,1.2761607,104580.0,104570.0,0.4585686]
[1762714700864,0.06588,104550.0,104540.0,0.0956739]
[1762714701064,0.10618,104540.0,104530.0,0.28508107]
[1762714701271,0.10618,104540.0,104520.0,0.4564901]
[1762714701272,0.13394,104530.0,104520.0,0.4564901]
[1762714701469,0.0403,104520.0,104510.0,0.6967827]
[1762714701773,0.0403,104520.0,104510.0,1.13132784]
[1762714701972,0.0403,104520.0,104510.0,1.14085755]
[1762714702177,1.2470373,104520.0,104510.0,0.05088473]
[1762714702377,0.13394,104510.0,104500.0,0.15645195]
[1762714702572,0.41136,104510.0,104500.0,0.00014346]
[1762714702874,0.7339,104510.0,104500.0,0.00014346]
[1762714703079,1.01081001,104510.0,104500.0,0.00014346]
[1762714703272,0.91510361,104510.0,104500.0,0.00014346]
[1762714703575,1.01081001,104510.0,104500.0,0.00514346]
[1762714704172,0.17424,104480.0,104470.0,0.55894064]
[1762714704477,0.4134,104480.0,104470.0,0.55894064]
[1762714704666,0.41557154,104480.0,104470.0,0.56863099]
[1762714705072,0.41621813,104480.0,104470.0,0.56863099]
[1762714705376,0.05411813,104480.0,104470.0,0.56963099]
[1762714705567,0.29327813,104480.0,104470.0,0.66534766]
[1762714705762,0.0543054,104480.0,104470.0,0.66534766]
[1762714705963,0.05495199,104480.0,104470.0,0.66534766]
[1762714706180,0.06295199,104480.0,104470.0,0.66634766]
[1762714706381,0.06359858,104480.0,104470.0,0.66634766]
[1762714706677,0.30275858,104480.0,104470.0,0.66634766]
[1762714706877,0.06424517,104480.0,104470.0,0.66634766]
[1762714707179,0.30340517,104480.0,104470.0,0.66634766]
[1762714707474,0.06489176,104480.0,104470.0,0.61546293]
[1762714707776,0.26439835,104480.0,104470.0,0.8048599]
[1762714707979,6e-08,104490.0,104480.0,0.3350139]
[1762714708178,6e-08,104490.0,104480.0,0.7964939]
[1762714708369,0.58816,104520.0,104510.0,0.0957064]
[1762714708677,0.58916963,104520.0,104510.0,0.0957064]
[1762714708872,0.62742963,104520.0,104510.0,0.0957064]
[1762714709271,0.62807678,104520.0,104510.0,0.0957064]
[1762714709677,0.62872393,104520.0,104510.0,0.0957064]
[1762714710073,0.62937108,104520.0,104510.0,0.0967064]
[1762714710380,0.72506838,104520.0,104510.0,0.001]
[1762714710568,0.62937108,104520.0,104510.0,0.0967065]
[1762714710769,0.72506838,104520.0,104510.0,0.0967065]
[1762714710970,0.72506838,104520.0,104510.0,0.001]
[1762714711367,0.1636764,104510.0,104500.0,0.00014346]
[1762714711675,1.0220664,104510.0,104500.0,0.00014346]
[1762714711875,0.2827848,104490.0,104480.0,0.05039479]
[1762714712075,0.98665588,104490.0,104480.0,0.05039479]
[1762714712376,1.02491588,104490.0,104480.0,0.05039479]
[1762714713174,0.92919108,104490.0,104480.0,0.14612869]
[1762714713575,0.93719108,104490.0,104480.0,0.14712869]
[1762714715479,0.94619108,104490.0,104480.0,0.14812869]
[1762714715677,0.24527108,104490.0,104480.0,0.22296651]
[1762714715984,0.20701108,104490.0,104480.0,0.22296651]
[1762714716377,0.01995108,104490.0,104480.0,1.16292651]
[1762714716686,0.01995108,104490.0,104480.0,1.25863402]
[1762714717082,0.01995108,104490.0,104480.0,1.01935402]
[1762714717277,0.017,104490.0,104480.0,1.01935402]
[1762714717484,0.12449568,104540.0,104530.0,0.0956881]
[1762714717485,0.57667628,104540.0,104530.0,0.0956881]
[1762714717779,0.02881628,104540.0,104530.0,0.46008071]
[1762714717984,0.02881628,104540.0,104530.0,0.82088071]
[1762714717985,0.07123,104540.0,104530.0,0.82088071]
[1762714718186,0.07123,104540.0,104530.0,0.91654245]
[1762714718379,0.25829,104540.0,104530.0,0.79130984]
[1762714718573,0.25929,104540.0,104530.0,0.55614984]
[1762714718978,0.25929,104540.0,104530.0,0.55714984]
[1762714719382,0.07223,104540.0,104530.0,0.55714984]
[1762714719785,0.07223,104540.0,104530.0,0.92154245]
[1762714720378,0.07223,104540.0,104530.0,0.99804487]
[1762714721293,0.001,104540.0,104530.0,0.75888487]
[1762714721590,0.07223,104540.0,104530.0,1.33900487]
[1762714722385,0.001,104540.0,104530.0,1.33900487]
[1762714722592,0.001,104540.0,104530.0,0.75888487]
[1762714722887,0.001,104540.0,104530.0,1.33936487]
[1762714723092,0.001,104540.0,104530.0,1.10020487]
[1762714723392,0.001,104540.0,104530.0,1.33936487]
[1762714723587,0.001,104540.0,104530.0,1.10020487]
[1762714723992,0.001,104540.0,104530.0,1.33936487]
[1762714726094,0.07223,104540.0,104530.0,1.33908487]
[1762714726397,0.07223,104540.0,104530.0,1.3130352]
[1762714726695,0.07223,104540.0,104530.0,1.0738752]